fUST/lending_fUST_20250723
["ID","MTS","AMOUNT","RATE_DAILY","PERIOD"]
[374252886,1753255856404,-460.0,0.00020821,2]
[374252887,1753255856416,-460.0,0.00020821,2]
[374252888,1753255856428,-2127.15,0.00020821,2]
[374252889,1753255856441,-460.0,0.00020821,2]
[374252890,1753255856455,-460.0,0.00020821,2]
[374252891,1753255856469,-460.0,0.00020821,2]
[374252892,1753255856483,-460.0,0.00020821,2]
[374252893,1753255856497,-271.37,0.00020821,2]
[374252894,1753255856511,-460.0,0.00020821,2]
[374252895,1753255856526,-1272.75,0.00020821,2]
[374252896,1753255856537,-460.0,0.00020821,2]
[374252897,1753255856548,-1455.12,0.00020821,2]
[374252898,1753255856558,-594.65,0.00020821,2]
[374252899,1753255856571,-463.01,0.00020821,2]
[374252900,1753255856585,-1681.82,0.00020821,2]
[374252901,1753255856598,-460.0,0.00020821,2]
[374252902,1753255856608,-3384.83,0.00020821,2]
[374252903,1753255856621,-284.16,0.00020821,2]
[374252904,1753255856638,-460.0,0.00020821,2]
[374252905,1753255856649,-499.96,0.00020821,2]
[374252906,1753255856660,-460.0,0.00020821,2]
[374252907,1753255856671,-812.87,0.00020821,2]
[374252908,1753255856683,-460.0,0.00020821,2]
[374252909,1753255856695,-460.0,0.00020821,2]
[374252910,1753255856708,-2917.93,0.00020821,2]
[374252911,1753255856720,-1190.21,0.00020821,2]
[374252912,1753255856731,-460.0,0.00020821,2]
[374252913,1753255856742,-1775.05,0.00020821,2]
[374252914,1753255856754,-460.0,0.00020821,2]
[374252915,1753255856766,-151.11,0.00020821,2]
[374252916,1753255856777,-2438.43,0.00020821,2]
[374252917,1753255856789,-460.0,0.00020821,2]
[374252918,1753255856801,-460.0,0.00020821,2]
[374252919,1753255856813,-1445.45940499,0.00020934,4]
[374252920,1753255856825,-260.0,0.00020973,2]
[374252921,1753255856836,-1548.59,0.00020995,2]
[374252922,1753255856848,-2405.88,0.00020995,2]
[374252923,1753255856860,-460.0,0.00020995,2]
[374252924,1753255856873,-460.0,0.00020995,2]
[374252925,1753255856885,-215.0738,0.0002105,2]
[374252926,1753255856896,-151.0,0.0002105,2]
[374252927,1753255856908,-157.46521292,0.0002105,2]
[374252928,1753255856919,-1524.23450938,0.00021068,2]
[374252929,1753255856931,-1500.0,0.00021068,2]
[374252930,1753255856942,-460.0,0.00021095,2]
[374252931,1753255856953,-460.0,0.00021095,2]
[374252932,1753255856965,-169.62,0.00021095,2]
[374252933,1753255856976,-1399.15,0.00021095,2]
[374252934,1753255856987,-460.0,0.00021095,2]
[374252935,1753255856999,-483.75,0.00021095,2]
[374252936,1753255857010,-460.0,0.00021095,2]
[374252937,1753255857021,-750.54,0.00021095,2]
[374252938,1753255857032,-460.0,0.00021095,2]
[374252939,1753255857044,-460.0,0.00021095,2]
[374252940,1753255857055,-504.3,0.00021095,2]
[374252941,1753255857067,-460.0,0.00021095,2]
[374252942,1753255857078,-460.0,0.00021095,2]
[374252943,1753255857090,-460.0,0.00021095,2]
[374252944,1753255857101,-4102.28,0.00021095,2]
[374252945,1753255857113,-460.0,0.00021095,2]
[374252946,1753255857124,-694.17,0.00021095,2]
[374252947,1753255857136,-460.0,0.00021095,2]
[374252948,1753255857147,-460.0,0.00021095,2]
[374252949,1753255857159,-1140.67,0.00021095,2]
[374252950,1753255857170,-1241.6,0.00021095,2]
[374252951,1753255857182,-460.0,0.00021095,2]
[374252952,1753255857194,-1447.65,0.00021095,2]
[374252953,1753255857205,-460.0,0.00021095,2]
[374252954,1753255857217,-460.0,0.00021095,2]
[374252955,1753255857229,-2127.15,0.00021095,2]
[374252956,1753255857241,-460.0,0.00021095,2]
[374252957,1753255857252,-460.0,0.00021095,2]
[374252958,1753255857264,-460.0,0.00021095,2]
[374252959,1753255857275,-460.0,0.00021095,2]
[374252960,1753255857286,-460.0,0.00021095,2]
[374252961,1753255857298,-1272.75,0.00021095,2]
[374252962,1753255857310,-460.0,0.00021095,2]
[374252963,1753255857324,-1455.12,0.00021095,2]
[374252964,1753255857336,-594.65,0.00021095,2]
[374252965,1753255857347,-463.01,0.00021095,2]
[374252966,1753255857359,-1681.82,0.00021095,2]
[374252967,1753255857371,-460.0,0.00021095,2]
[374252968,1753255857382,-3384.83,0.00021095,2]
[374252969,1753255857394,-460.0,0.00021095,2]
[374252970,1753255857405,-499.96,0.00021095,2]
[374252971,1753255857417,-460.0,0.00021095,2]
[374252972,1753255857428,-812.87,0.00021095,2]
[374252973,1753255857440,-460.0,0.00021095,2]
[374252974,1753255857452,-460.0,0.00021095,2]
[374252975,1753255857464,-2917.93,0.00021095,2]
[374252976,1753255857476,-1190.21,0.00021095,2]
[374252977,1753255857488,-1775.05,0.00021095,2]
[374252978,1753255857501,-460.0,0.00021095,2]
[374252979,1753255857512,-2438.43,0.00021095,2]
[374252980,1753255857526,-460.0,0.00021095,2]
[374252981,1753255857537,-537.21,0.00021095,2]
[374252982,1753255857696,-1445.45940499,0.00021141,4]
[374252983,1753255857709,-2660.48494445,0.00021267,2]
[374252984,1753255857719,-1548.59,0.00021269,2]
[374252985,1753255857728,-3317.43940118,0.00021269,2]
[374252986,1753255857738,-2405.88,0.00021269,2]
[374252987,1753255857747,-460.0,0.00021269,2]
[374252988,1753255857756,-460.0,0.00021269,2]
[374252989,1753255857766,-1445.45940499,0.00021348,5]
[374252990,1753255857776,-460.0,0.00021369,2]
[374252991,1753255857785,-460.0,0.00021369,2]
[374252992,1753255857795,-151.0,0.00021369,2]
[374252993,1753255857805,-151.0,0.00021369,2]
[374252994,1753255857814,-151.0,0.00021369,2]
[374252995,1753255857824,-1399.15,0.00021369,2]
[374252996,1753255857833,-460.0,0.00021369,2]
[374252997,1753255857843,-483.75,0.00021369,2]
[374252998,1753255857852,-460.0,0.00021369,2]
[374252999,1753255857862,-750.54,0.00021369,2]
[374253000,1753255857871,-460.0,0.00021369,2]
[374253001,1753255857881,-557.8,0.00021369,2]
[374253002,1753255857891,-504.3,0.00021369,2]
[374253003,1753255857900,-460.0,0.00021369,2]
[374253004,1753255857909,-460.0,0.00021369,2]
[374253005,1753255857919,-460.0,0.00021369,2]
[374253006,1753255857928,-4102.28,0.00021369,2]
[374253007,1753255857938,-460.0,0.00021369,2]
[374253008,1753255857947,-694.17,0.00021369,2]
[374253009,1753255857957,-460.0,0.00021369,2]
[374253010,1753255857966,-1140.67,0.00021369,2]
[374253011,1753255857975,-1241.6,0.00021369,2]
[374253012,1753255857985,-460.0,0.00021369,2]
[374253013,1753255857994,-1447.65,0.00021369,2]
[374253014,1753255858003,-460.0,0.00021369,2]
[374253015,1753255858012,-460.0,0.00021369,2]
[374253016,1753255858022,-2127.15,0.00021369,2]
[374253017,1753255858030,-460.0,0.00021369,2]
[374253018,1753255858038,-460.0,0.00021369,2]
[374253019,1753255858046,-460.0,0.00021369,2]
[374253020,1753255858055,-460.0,0.00021369,2]
[374253021,1753255858063,-460.0,0.00021369,2]
[374253022,1753255858072,-1272.75,0.00021369,2]
[374253023,1753255858082,-460.0,0.00021369,2]
[374253024,1753255858093,-1455.12,0.00021369,2]
[374253025,1753255858103,-594.65,0.00021369,2]
[374253026,1753255858112,-463.01,0.00021369,2]
[374253027,1753255858121,-1681.82,0.00021369,2]
[374253028,1753255858131,-460.0,0.00021369,2]
[374253029,1753255858140,-3384.83,0.00021369,2]
[374253030,1753255858149,-460.0,0.00021369,2]
[374253031,1753255858158,-499.96,0.00021369,2]
[374253032,1753255858167,-460.0,0.00021369,2]
[374253033,1753255858176,-812.87,0.00021369,2]
[374253034,1753255858186,-460.0,0.00021369,2]
[374253035,1753255858195,-534.70421361,0.00021369,2]
[374253036,1753255858204,-2917.93,0.00021369,2]
[374253037,1753255858214,-1190.21,0.00021369,2]
[374253038,1753255858223,-1775.05,0.00021369,2]
[374253039,1753255858232,-460.0,0.00021369,2]
[374253040,1753255858241,-2438.43,0.00021369,2]
[374253041,1753255858251,-460.0,0.00021369,2]
[374253042,1753255858260,-360.0,0.00021521,2]
[374253043,1753255858269,-1548.59,0.00021543,2]
[374253044,1753255858279,-2405.88,0.00021543,2]
[374253045,1753255858288,-460.0,0.00021543,2]
[374253046,1753255858298,-460.0,0.00021543,2]
[374253047,1753255858307,-1445.45940499,0.00021555,5]
[374253048,1753255858317,-500.0,0.00021629,2]
[374253049,1753255858326,-460.0,0.00021643,2]
[374253050,1753255858336,-460.0,0.00021643,2]
[374253051,1753255858345,-1399.15,0.00021643,2]
[374253052,1753255858354,-518.95757029,0.00021643,2]
[374253053,1753255858363,-483.75,0.00021643,2]
[374253054,1753255858372,-460.0,0.00021643,2]
[374253055,1753255858381,-750.54,0.00021643,2]
[374253056,1753255858390,-536.60429499,0.00021643,2]
[374253057,1753255858400,-504.3,0.00021643,2]
[374253058,1753255858409,-321.61,0.00021643,2]
[374253059,1753255858418,-460.0,0.00021643,2]
[374253060,1753255858427,-468.87210712,0.00021643,2]
[374253061,1753255858437,-4102.28,0.00021643,2]
[374253062,1753255858446,-460.0,0.00021643,2]
[374253063,1753255858456,-694.17,0.00021643,2]
[374253064,1753255858466,-460.0,0.00021643,2]
[374253065,1753255858476,-1140.67,0.00021643,2]
[374253066,1753255858487,-1241.6,0.00021643,2]
[374253067,1753255858497,-460.0,0.00021643,2]
[374253068,1753255858507,-1447.65,0.00021643,2]
[374253069,1753255858516,-460.0,0.00021643,2]
[374253070,1753255858526,-460.0,0.00021643,2]
[374253071,1753255858536,-2127.15,0.00021643,2]
[374253072,1753255858546,-460.0,0.00021643,2]
[374253073,1753255858555,-460.0,0.00021643,2]
[374253074,1753255858564,-460.0,0.00021643,2]
[374253075,1753255858574,-460.0,0.00021643,2]
[374253076,1753255858583,-460.0,0.00021643,2]
[374253077,1753255858592,-1272.75,0.00021643,2]
[374253078,1753255858601,-460.0,0.00021643,2]
[374253079,1753255858611,-1455.12,0.00021643,2]
[374253080,1753255858622,-594.65,0.00021643,2]
[374253081,1753255858632,-463.01,0.00021643,2]
[374253082,1753255858641,-1681.82,0.00021643,2]
[374253083,1753255858650,-460.0,0.00021643,2]
[374253084,1753255858660,-3384.83,0.00021643,2]
[374253085,1753255858669,-460.0,0.00021643,2]
[374253086,1753255858678,-499.96,0.00021643,2]
[374253087,1753255858688,-460.0,0.00021643,2]
[374253088,1753255858697,-812.87,0.00021643,2]
[374253089,1753255858707,-247.50336753,0.00021643,2]
[374253090,1753255858717,-2917.93,0.00021643,2]
[374253091,1753255858726,-1190.21,0.00021643,2]
[374253092,1753255858735,-1775.05,0.00021643,2]
[374253093,1753255858745,-460.0,0.00021643,2]
[374253094,1753255858754,-2438.43,0.00021643,2]
[374253095,1753255858763,-460.0,0.00021643,2]
[374253096,1753255858772,-180.38058028,0.00021716,2]
[374253097,1753255858781,-1445.45940499,0.00021762,5]
[374253098,1753255858791,-1548.59,0.00021817,2]
[374253099,1753255858800,-2405.88,0.00021817,2]
[374253100,1753255858809,-460.0,0.00021817,2]
[374253101,1753255858818,-460.0,0.00021817,2]
[374253102,1753255858827,-460.0,0.00021917,2]
[374253103,1753255858837,-460.0,0.00021917,2]
[374253104,1753255858846,-1399.15,0.00021917,2]
[374253105,1753255858856,-483.75,0.00021917,2]
[374253106,1753255858865,-460.0,0.00021917,2]
[374253107,1753255858874,-750.54,0.00021917,2]
[374253108,1753255858884,-504.3,0.00021917,2]
[374253109,1753255858894,-460.0,0.00021917,2]
[374253110,1753255858903,-4102.28,0.00021917,2]
[374253111,1753255858912,-460.0,0.00021917,2]
[374253112,1753255858921,-694.17,0.00021917,2]
[374253113,1753255858931,-460.0,0.00021917,2]
[374253114,1753255858941,-1140.67,0.00021917,2]
[374253115,1753255858951,-1241.6,0.00021917,2]
[374253116,1753255858960,-460.0,0.00021917,2]
[374253117,1753255858970,-1447.65,0.00021917,2]
[374253118,1753255858979,-460.0,0.00021917,2]
[374253119,1753255858989,-460.0,0.00021917,2]
[374253120,1753255858999,-2127.15,0.00021917,2]
[374253121,1753255859008,-460.0,0.00021917,2]
[374253122,1753255859018,-460.0,0.00021917,2]
[374253123,1753255859027,-246.1,0.00021917,2]
[374253124,1753255859037,-460.0,0.00021917,2]
[374253125,1753255859046,-1272.75,0.00021917,2]
[374253126,1753255859055,-213.06,0.00021917,2]
[374253127,1753255859065,-1455.12,0.00021917,2]
[374253128,1753255859074,-594.65,0.00021917,2]
[374253129,1753255859084,-463.01,0.00021917,2]
[374253130,1753255859093,-1681.82,0.00021917,2]
[374253131,1753255859102,-460.0,0.00021917,2]
[374253132,1753255859112,-3384.83,0.00021917,2]
[374253133,1753255859121,-460.0,0.00021917,2]
[374253134,1753255859130,-499.96,0.00021917,2]
[374253135,1753255859139,-460.0,0.00021917,2]
[374253136,1753255859149,-812.87,0.00021917,2]
[374253137,1753255859158,-2917.93,0.00021917,2]
[374253138,1753255859167,-1190.21,0.00021917,2]
[374253139,1753255859177,-1775.05,0.00021917,2]
[374253140,1753255859186,-460.0,0.00021917,2]
[374253141,1753255859195,-2438.43,0.00021917,2]
[374253142,1753255859204,-460.0,0.00021917,2]
[374253143,1753255859214,-153.0,0.00021918,2]
[374253144,1753255859223,-153.0,0.00021918,2]
[374253145,1753255859232,-153.0,0.00021918,2]
[374253146,1753255859241,-153.0,0.00021918,2]
[374253147,1753255859250,-153.0,0.00021918,2]
[374253148,1753255859260,-153.0,0.00021918,2]
[374253149,1753255859269,-153.0,0.00021918,2]
[374253150,1753255859279,-153.0,0.00021918,2]
[374253151,1753255859288,-153.0,0.00021918,2]
[374253152,1753255859297,-153.0,0.00021918,2]
[374253153,1753255859307,-153.0,0.00021918,2]
[374253154,1753255859316,-153.0,0.00021918,2]
[374253155,1753255859326,-153.0,0.00021918,2]
[374253156,1753255859335,-153.0,0.00021918,2]
[374253157,1753255859344,-153.0,0.00021918,2]
[374253158,1753255859354,-153.0,0.00021918,2]
[374253159,1753255859363,-153.0,0.00021918,2]
[374253160,1753255859372,-153.0,0.00021918,2]
[374253161,1753255859381,-153.0,0.00021918,2]
[374253162,1753255859390,-153.0,0.00021918,2]
[374253163,1753255859399,-153.0,0.00021918,2]
[374253164,1753255859408,-153.0,0.00021918,2]
[374253165,1753255859417,-153.0,0.00021918,2]
[374253166,1753255859425,-153.0,0.00021918,2]
[374253167,1753255859433,-153.0,0.00021918,2]
[374253168,1753255859442,-153.0,0.00021918,2]
[374253169,1753255859450,-153.0,0.00021918,2]
[374253170,1753255859459,-153.0,0.00021918,2]
[374253171,1753255859468,-153.0,0.00021918,2]
[374253172,1753255859477,-153.0,0.00021918,2]
[374253173,1753255859488,-153.0,0.00021918,2]
[374253174,1753255859497,-153.0,0.00021918,2]
[374253175,1753255859506,-153.0,0.00021918,2]
[374253176,1753255859516,-153.0,0.00021918,2]
[374253177,1753255859526,-153.0,0.00021918,2]
[374253178,1753255859535,-153.0,0.00021918,2]
[374253179,1753255859545,-153.0,0.00021918,2]
[374253180,1753255859554,-153.0,0.00021918,2]
[374253181,1753255859564,-153.0,0.00021918,2]
[374253182,1753255859575,-153.0,0.00021918,2]
[374253183,1753255859585,-153.0,0.00021918,2]
[374253184,1753255859595,-153.0,0.00021918,2]
[374253185,1753255859605,-153.0,0.00021918,2]
[374253186,1753255859614,-153.0,0.00021918,2]
[374253187,1753255859626,-153.0,0.00021918,2]
[374253188,1753255859636,-153.0,0.00021918,2]
[374253189,1753255859644,-153.0,0.00021918,2]
[374253190,1753255859654,-153.0,0.00021918,2]
[374253191,1753255859663,-153.0,0.00021918,2]
[374253192,1753255859673,-153.0,0.00021918,2]
[374253193,1753255859683,-153.0,0.00021918,2]
[374253194,1753255859692,-153.0,0.00021918,2]
[374253195,1753255859703,-153.0,0.00021918,2]
[374253196,1753255859712,-153.0,0.00021918,2]
[374253197,1753255859721,-153.0,0.00021918,2]
[374253198,1753255859730,-153.0,0.00021918,2]
[374253199,1753255859740,-153.0,0.00021918,2]
[374253200,1753255859751,-153.0,0.00021918,2]
[374253201,1753255859761,-153.0,0.00021918,2]
[374253202,1753255859770,-153.0,0.00021918,2]
[374253203,1753255859779,-153.0,0.00021918,2]
[374253204,1753255859789,-153.0,0.00021918,2]
[374253205,1753255859798,-153.0,0.00021918,2]
[374253206,1753255859807,-153.0,0.00021918,2]
[374253207,1753255859816,-153.0,0.00021918,2]
[374253208,1753255859825,-153.0,0.00021918,2]
[374253209,1753255859835,-153.0,0.00021918,2]
[374253210,1753255859846,-153.0,0.00021918,2]
[374253211,1753255859856,-153.0,0.00021918,2]
[374253212,1753255859868,-153.0,0.00021918,2]
[374253213,1753255859877,-153.0,0.00021918,2]
[374253214,1753255859888,-153.0,0.00021918,2]
[374253215,1753255859899,-153.0,0.00021918,2]
[374253216,1753255859909,-153.0,0.00021918,2]
[374253217,1753255859918,-153.0,0.00021918,2]
[374253218,1753255859927,-153.0,0.00021918,2]
[374253219,1753255859936,-153.0,0.00021918,2]
[374253220,1753255859945,-153.0,0.00021918,2]
[374253221,1753255859954,-153.0,0.00021918,2]
[374253222,1753255859963,-153.0,0.00021918,2]
[374253223,1753255859972,-150.62458264,0.00021918,2]
[374253224,1753255859982,-150.08442765,0.00021918,2]
[374253225,1753255859991,-200.36388747,0.00021918,2]
[374253226,1753255860001,-1445.45940499,0.00021969,6]
[374253227,1753255860010,-154.821186,0.0002199,7]
[374253228,1753255860019,-945.6,0.00022,7]
[374253229,1753255860029,-481.06,0.00022,7]
[374253230,1753255860039,-164.0,0.00022,2]
[374253231,1753255860048,-151.0,0.00022,8]
[374253232,1753255860059,-7312.74,0.00022,7]
[374253233,1753255860068,-163.0,0.00022,2]
[374253234,1753255860078,-13527.88,0.00022,2]
[374253235,1753255860088,-151.0,0.00022,7]
[374253236,1753255860098,-151.0,0.00022,7]
[374253237,1753255860107,-151.0,0.0002205,7]
[374253238,1753255860116,-151.0,0.0002205,7]
[374253239,1753255860125,-460.0,0.00022069,2]
[374253240,1753255860135,-1548.59,0.00022091,2]
[374253241,1753255860144,-2405.88,0.00022091,2]
[374253242,1753255860155,-460.0,0.00022091,2]
[374253243,1753255860164,-1010.05668947,0.000221,2]
[374253244,1753255860174,-2029.86,0.00022161,2]
[374253245,1753255860184,-1445.45940499,0.00022176,6]
[374253246,1753255860193,-470.8224155,0.00022191,2]
[374253247,1753255860202,-415.49463515,0.00022191,2]
[374253248,1753255860211,-1399.15,0.00022191,2]
[374253249,1753255860220,-483.75,0.00022191,2]
[374253250,1753255860230,-460.0,0.00022191,2]
[374253251,1753255860239,-750.54,0.00022191,2]
[374253252,1753255860249,-504.3,0.00022191,2]
[374253253,1753255860259,-460.0,0.00022191,2]
[374253254,1753255860269,-4102.28,0.00022191,2]
[374253255,1753255860278,-161.31,0.00022191,2]
[374253256,1753255860288,-694.17,0.00022191,2]
[374253257,1753255860297,-460.0,0.00022191,2]
[374253258,1753255860307,-1140.67,0.00022191,2]
[374253259,1753255860316,-1241.6,0.00022191,2]
[374253260,1753255860325,-590.05351395,0.00022191,2]
[374253261,1753255860335,-1447.65,0.00022191,2]
[374253262,1753255860344,-460.0,0.00022191,2]
[374253263,1753255860354,-460.0,0.00022191,2]
[374253264,1753255860364,-2127.15,0.00022191,2]
[374253265,1753255860373,-460.0,0.00022191,2]
[374253266,1753255860383,-460.0,0.00022191,2]
[374253267,1753255860393,-460.0,0.00022191,2]
[374253268,1753255860402,-1272.75,0.00022191,2]
[374253269,1753255860412,-1455.12,0.00022191,2]
[374253270,1753255860422,-151.0,0.00022191,7]
[374253271,1753255860431,-594.65,0.00022191,2]
[374253272,1753255860441,-463.01,0.00022191,2]
[374253273,1753255860451,-1681.82,0.00022191,2]
[374253274,1753255860460,-460.0,0.00022191,2]
[374253275,1753255860470,-3384.83,0.00022191,2]
[374253276,1753255860480,-460.0,0.00022191,2]
[374253277,1753255860489,-499.96,0.00022191,2]
[374253278,1753255860499,-460.0,0.00022191,2]
[374253279,1753255860509,-812.87,0.00022191,2]
[374253280,1753255860638,-2917.93,0.00022191,2]
[374253281,1753255860651,-1190.21,0.00022191,2]
[374253282,1753255860661,-1775.05,0.00022191,2]
[374253283,1753255860671,-460.0,0.00022191,2]
[374253284,1753255860682,-2438.43,0.00022191,2]
[374253285,1753255860692,-460.0,0.00022191,2]
[374253286,1753255860702,-500.0,0.000222,2]
[374253287,1753255860711,-1548.59,0.00022365,2]
[374253288,1753255860722,-2405.88,0.00022365,2]
[374253289,1753255860732,-460.0,0.00022365,2]
[374253290,1753255860741,-160.0,0.00022383,7]
[374253291,1753255860751,-214.67886746,0.00022383,7]
[374253292,1753255860760,-1445.45940499,0.00022383,7]
[374253293,1753255860770,-151.0,0.00022383,7]
[374253294,1753255860779,-152.376959,0.00022383,7]
[374253295,1753255860789,-151.0,0.00022383,7]
[374253296,1753255860798,-151.0,0.00022383,7]
[374253297,1753255860808,-152.467607,0.00022383,7]
[374253298,1753255860817,-151.0,0.00022383,7]
[374253299,1753255860826,-151.0,0.00022383,7]
[374253300,1753255860836,-12622.36869388,0.0002239,7]
[374253301,1753255860845,-223.0315306,0.00022419,2]
[374253302,1753255860855,-1399.15,0.00022465,2]
[374253303,1753255860864,-483.75,0.00022465,2]
[374253304,1753255860873,-460.0,0.00022465,2]
[374253305,1753255860883,-750.54,0.00022465,2]
[374253306,1753255860892,-504.3,0.00022465,2]
[374253307,1753255860902,-492.77,0.00022465,2]
[374253308,1753255860911,-4102.28,0.00022465,2]
[374253309,1753255860920,-694.17,0.00022465,2]
[374253310,1753255860930,-460.0,0.00022465,2]
[374253311,1753255860940,-152.301586,0.00022465,7]
[374253312,1753255860949,-151.0,0.00022465,2]
[374253313,1753255860959,-1140.67,0.00022465,2]
[374253314,1753255860968,-151.0,0.00022465,7]
[374253315,1753255860977,-1241.6,0.00022465,2]
[374253316,1753255860987,-151.0,0.00022465,7]
[374253317,1753255860996,-151.0,0.00022465,7]
[374253318,1753255861006,-151.0,0.00022465,7]
[374253319,1753255861016,-1447.65,0.00022465,2]
[374253320,1753255861026,-151.0,0.00022465,7]
[374253321,1753255861036,-460.0,0.00022465,2]
[374253322,1753255861046,-460.0,0.00022465,2]
[374253323,1753255861058,-2127.15,0.00022465,2]
[374253324,1753255861068,-460.0,0.00022465,2]
[374253325,1753255861078,-460.0,0.00022465,2]
[374253326,1753255861086,-460.0,0.00022465,2]
[374253327,1753255861095,-1272.75,0.00022465,2]
[374253328,1753255861104,-1455.12,0.00022465,2]
[374253329,1753255861112,-594.65,0.00022465,2]
[374253330,1753255861121,-463.01,0.00022465,2]
[374253331,1753255861130,-1681.82,0.00022465,2]
[374253332,1753255861140,-460.0,0.00022465,2]
[374253333,1753255861150,-3384.83,0.00022465,2]
[374253334,1753255861159,-460.0,0.00022465,2]
[374253335,1753255861169,-499.96,0.00022465,2]
[374253336,1753255861179,-460.0,0.00022465,2]
[374253337,1753255861190,-812.87,0.00022465,2]
[374253338,1753255861200,-2917.93,0.00022465,2]
[374253339,1753255861210,-1190.21,0.00022465,2]
[374253340,1753255861219,-1775.05,0.00022465,2]
[374253341,1753255861229,-460.0,0.00022465,2]
[374253342,1753255861238,-2438.43,0.00022465,2]
[374253343,1753255861248,-460.0,0.00022465,2]
[374253344,1753255861258,-18749.48388047,0.0002249,7]
[374253345,1753255861415,-73.57736572,0.0002249,7]
[374253346,1753255861611,-298.09336996,0.00019178,2]
[374253347,1753255861621,-460.16095876,0.00019178,2]
[374253348,1753255861630,-930.40154361,0.00019705,2]
[374253349,1753255861643,-460.0,0.00020547,2]
[374253350,1753255861653,-460.0,0.00020821,2]
[374253351,1753255861662,-98.80618927,0.00021095,2]
[374253352,1753255861674,-361.19381073,0.00021095,2]
[374253353,1753255861683,-460.0,0.00021369,2]
[374253354,1753255861692,-460.0,0.00021643,2]
[374253355,1753255861702,-500.20625317,0.00021917,2]
[374253356,1753255861711,-8854.31164285,0.0002249,7]
[374253357,1753255861722,-151.0,0.000226,10]
[374253358,1753255861732,-560.0,0.00022617,2]
[374253359,1753255861742,-1548.59,0.00022639,2]
[374253360,1753255861752,-2405.88,0.00022639,2]
[374253361,1753255861762,-460.0,0.00022639,2]
[374253362,1753255861771,-1399.15,0.00022739,2]
[374253363,1753255861781,-483.75,0.00022739,2]
[374253364,1753255861792,-277.99812951,0.00022739,2]
[374253365,1753255861801,-750.54,0.00022739,2]
[374253366,1753255861810,-199.661913,0.00022739,7]
[374253367,1753255861819,-151.0,0.00022739,7]
[374253368,1753255861829,-151.0,0.00022739,7]
[374253369,1753255861839,-504.3,0.00022739,2]
[374253370,1753255861850,-151.0,0.00022739,7]
[374253371,1753255861860,-151.0,0.00022739,7]
[374253372,1753255861870,-151.0,0.00022739,7]
[374253373,1753255861879,-4102.28,0.00022739,2]
[374253374,1753255861891,-151.0,0.00022739,7]
[374253375,1753255861902,-151.0,0.00022739,7]
[374253376,1753255861912,-151.0,0.00022739,7]
[374253377,1753255861930,-694.17,0.00022739,2]
[374253378,1753255861939,-460.0,0.00022739,2]
[374253379,1753255861949,-1140.67,0.00022739,2]
[374253380,1753255861961,-1241.6,0.00022739,2]
[374253381,1753255861970,-151.0,0.00022739,7]
[374253382,1753255861982,-292.040419,0.00022739,7]
[374253383,1753255861995,-1447.65,0.00022739,2]
[374253384,1753255862005,-460.0,0.00022739,2]
[374253385,1753255862015,-2127.15,0.00022739,2]